bitfinex-derivatives/quotes_ETHF0:USTF0_20250331
["timestamp","ask_amount","ask_price","bid_price","bid_amount"]
[1743410807961,5.254,1800.4,1800.3,1.11933478]
[1743410808158,4.93116478,1800.6,1800.5,1.11089]
[1743410808561,1.11916478,1800.6,1800.5,1.11089]
[1743410808761,1.11916478,1800.6,1800.5,2.55309]
[1743410809162,2.57486478,1800.6,1800.5,1.11089]
[1743410810071,2.57486478,1800.6,1800.5,2.51659]
[1743410810368,2.57486478,1800.6,1800.4,0.7032]
[1743410810573,1.11095,1800.4,1800.3,1.11930478]
[1743410811067,2.53175,1800.4,1800.3,1.11930478]
[1743410811768,1.4208,1800.4,1800.3,2.52500478]
[1743410812170,2.53175,1800.4,1800.3,2.52500478]
[1743410815470,2.53175,1800.4,1800.3,1.11930478]
[1743410816970,2.53175,1800.4,1800.3,2.57560478]
[1743410821480,8.4396,1800.4,1800.2,0.7032]
[1743410821673,8.4396,1800.4,1799.8,8.76418]
[1743410821674,1.11124,1800.0,1799.9,1.11116]
[1743410822381,1.87086,1800.1,1800.0,1.1112]
[1743410822877,3.35266,1800.1,1800.0,1.1112]
[1743410824880,3.35266,1800.1,1800.0,1.8554]
[1743410826880,3.2078,1800.2,1800.1,1.11113]
[1743410827078,3.2078,1800.2,1800.1,3.22443]
[1743410827380,4.92195,1800.4,1800.3,1.11101]
[1743410827881,1.11095,1800.4,1800.3,1.11101]
[1743410828085,1.11095,1800.4,1800.3,1.82271]
[1743410828283,2.48492,1800.5,1800.4,1.11095]
[1743410828484,2.48492,1800.5,1800.4,3.22895]
[1743410829776,7.76922478,1800.6,1800.5,1.11089]
[1743410829777,0.00832478,1800.6,1800.5,1.11089]
[1743410829976,1.11914478,1800.6,1800.5,2.50549]
[1743410830179,0.00832478,1800.6,1800.5,2.50549]
[1743410831473,3.2078,1801.1,1800.9,1.11064]
[1743410831674,6.37372,1801.1,1801.0,1.398]
[1743410831872,6.37372,1801.1,1801.0,2.111]
[1743410832082,9.58152,1801.1,1801.0,2.111]
[1743410832272,5.77052,1801.1,1801.0,2.111]
[1743410833777,5.77052,1801.1,1801.0,1.398]
[1743410834783,5.77052,1801.1,1801.0,2.50858]
[1743410835680,3.2078,1801.1,1801.0,2.50858]
[1743410835871,0.00832478,1801.2,1801.1,1.11052]
[1743410836076,0.00832478,1801.2,1801.1,2.50472]
[1743410839982,1.1102,1801.7,1801.6,1.11021]
[1743410840181,1.3906,1801.6,1801.5,1.1102]
[1743410840380,2.50084,1801.6,1801.5,1.1102]
[1743410840887,1.11024,1801.6,1801.5,1.1102]
[1743410841083,1.11024,1801.6,1801.5,1.4791]
[1743410841385,2.59454,1801.6,1801.5,2.58937]
[1743410841783,4.92751478,1801.7,1801.6,1.11021]
[1743410842087,0.00832478,1801.7,1801.6,3.33931]
[1743410842280,1.11847478,1801.7,1801.6,3.33931]
[1743410842675,2.60277478,1801.7,1801.6,3.33931]
[1743410843186,1.49262478,1801.7,1801.6,3.33931]
[1743410843387,2.60277478,1801.7,1801.6,3.33931]
[1743410845089,2.60277478,1801.7,1801.6,2.2291]
[1743410845381,2.60277478,1801.7,1801.3,2.77597]
[1743410845382,1.11033,1801.4,1801.3,1.11034]
[1743410845589,1.11033,1801.4,1801.3,2.51604]
[1743410846078,2.58643,1801.4,1801.3,2.51604]
[1743410847688,2.58643,1801.4,1801.3,2.51609]
[1743410848491,1.4761,1801.4,1801.3,2.51609]
[1743410848677,3.807,1801.6,1801.3,1.4057]
[1743410848879,3.807,1801.6,1801.5,1.11027]
[1743410849086,2.51497478,1801.7,1801.6,1.11021]
[1743410849883,1.11021,1801.6,1801.5,2.56221]
[1743410850083,2.56141,1801.6,1801.5,2.56221]
[1743410850289,5.76921,1801.6,1801.5,1.452]
[1743410850590,6.48281,1801.6,1801.5,2.56227]
[1743410851196,3.27501,1801.6,1801.5,2.56227]
[1743410852495,0.00832478,1801.7,1801.6,1.11021]
[1743410852795,0.00832478,1801.7,1801.6,1.84431]
[1743410853294,1.11847478,1801.7,1801.6,1.84431]
[1743410853486,2.55247478,1801.7,1801.6,1.84431]
[1743410854294,1.44232478,1801.7,1801.6,1.84431]
[1743410854593,0.00832478,1801.7,1801.6,1.84431]
[1743410854888,0.00832478,1801.7,1801.6,3.32581]
[1743410855693,1.11847478,1801.7,1801.6,3.32581]
[1743410858490,2.54107478,1801.7,1801.6,3.32581]
[1743410859291,1.11033,1801.5,1801.4,1.11028]
[1743410859684,3.25473,1801.5,1801.4,1.11028]
[1743410862192,1.11033,1801.4,1801.3,2.53135]
[1743410862397,2.49183,1801.4,1801.3,2.53135]
[1743410864888,1.3815,1801.4,1801.3,2.53135]
[1743410865087,1.1103,1801.5,1801.4,1.11027]
[1743410865294,1.3906,1801.5,1801.4,2.54817]
[1743410866497,2.50087,1801.5,1801.4,2.54817]
[1743410866799,1.3906,1801.5,1801.4,2.54817]
[1743410867299,1.3906,1801.5,1801.4,3.96867]
[1743410868703,3.9095,1801.6,1801.5,1.11027]
[1743410869002,5.01971,1801.6,1801.5,2.55647]
[1743410869202,0.00832478,1801.7,1801.6,1.11021]
[1743410869402,3.81332478,1801.7,1801.6,2.55641]
[1743410869704,5.27392478,1801.7,1801.6,2.55641]
[1743410871002,1.46892478,1801.7,1801.6,2.55641]
[1743410872092,0.00832478,1801.7,1801.6,2.55641]
[1743410880801,3.2078,1802.2,1801.6,13.30008]
[1743410881006,4.7174,1802.2,1802.1,1.1099]
[1743410881306,3.2078,1802.2,1802.1,1.1099]
[1743410881508,4.31764,1802.2,1802.1,1.1099]
[1743410881811,3.2078,1802.2,1802.1,1.1099]
[1743410882012,4.31764,1802.2,1802.1,1.1099]
[1743410882408,3.2078,1802.2,1802.1,1.1099]
[1743410883015,4.31764,1802.2,1802.1,1.1099]
[1743410883208,3.2078,1802.2,1802.1,1.1099]
[1743410884218,4.31764,1802.2,1802.1,1.7977]
[1743410884417,5.00119,1802.2,1802.0,0.00832478]
[1743410884718,1.4533,1802.1,1802.0,1.11822478]
[1743410884909,0.6835,1802.2,1802.1,1.1099]
[1743410885218,1.46162478,1802.3,1802.2,1.10984]
[1743410885611,0.00832478,1802.3,1802.2,1.10984]
[1743410886707,1.51872478,1802.3,1802.2,1.10984]
[1743410887213,2.62850478,1802.3,1802.2,1.10984]
[1743410888114,1.51872478,1802.3,1802.2,1.10984]
[1743410888316,2.62850478,1802.3,1802.2,1.10984]
[1743410888622,1.51872478,1802.3,1802.2,1.10984]
[1743410888830,2.62850478,1802.3,1802.2,1.10984]
[1743410889226,1.51872478,1802.3,1802.2,1.10984]
[1743410889828,2.62850478,1802.3,1802.2,1.10984]
[1743410890134,1.51872478,1802.3,1802.2,1.10984]
[1743410890335,2.62850478,1802.3,1802.2,1.10984]
[1743410890535,1.51872478,1802.3,1802.2,1.10984]
[1743410890732,2.62850478,1802.3,1802.2,1.10984]
[1743410891730,1.10987,1802.2,1802.1,1.10984]
[1743410891932,1.1099,1802.1,1802.0,1.11823478]
[1743410892133,4.3177,1802.1,1802.0,1.11823478]
[1743410892434,1.5081,1802.1,1802.0,1.11823478]
[1743410894832,5.8258,1802.1,1802.0,1.11823478]
[1743410895231,2.618,1802.1,1802.0,1.11823478]
[1743410895539,1.5081,1802.1,1802.0,1.11823478]
[1743410895732,3.21612478,1802.3,1802.2,1.10984]
[1743410896140,0.00832478,1802.3,1802.2,4.31764]
[1743410896336,0.00832478,1802.3,1802.2,5.03854]
[1743410901143,0.00832478,1802.3,1802.2,6.47544]
[1743410911149,3.799,1803.0,1802.9,1.10941]
[1743410911452,1.83288,1803.1,1803.0,1.10935]
[1743410912651,7.81118,1803.1,1803.0,1.10935]
[1743410914446,1.10935,1803.0,1802.9,0.00832478]
[1743410914747,5.69645,1803.0,1802.9,1.11773478]
[1743410916353,8.19645,1803.0,1802.9,0.00832478]
[1743410916648,1.10965,1802.6,1802.5,1.1096]
[1743410917158,2.9181,1802.6,1802.5,1.1096]
[1743410917450,2.2126,1802.6,1802.5,2.5899]
[1743410917647,2.2126,1802.6,1802.5,3.3314]
[1743410918246,2.2126,1802.6,1802.5,2.5899]
[1743410919852,3.32219,1802.6,1802.5,2.5899]
[1743410920054,1.10965,1802.5,1802.4,1.86939478]
[1743410920254,1.425,1802.5,1802.4,3.29399478]
[1743410920648,1.425,1802.5,1802.4,1.11799478]
[1743410920855,2.53465,1802.5,1802.4,1.11799478]
[1743410922152,3.25735,1802.5,1802.4,1.11799478]
[1743410922355,6.46515,1802.5,1802.4,0.00832478]
[1743410922653,10.26215,1802.5,1802.4,0.00832478]
[1743410924759,1.10993,1802.1,1802.0,1.10989]
[1743410925357,1.10996,1802.0,1801.9,5.80157]
[1743410925564,1.11002,1801.9,1801.8,1.11003]
[1743410925853,5.2981,1801.9,1801.3,2.77587]
[1743410926054,4.31795,1801.7,1801.6,0.00832478]
[1743410926559,5.81905,1801.7,1801.6,0.00832478]
[1743410927856,6.53195,1801.7,1801.6,0.00832478]
[1743410928948,6.53195,1801.7,1801.6,1.11853478]
[1743410929152,6.53195,1801.7,1801.6,0.00832478]
[1743410930354,6.53195,1801.7,1801.6,1.11853478]
[1743410930554,6.53195,1801.7,1801.6,0.00832478]
[1743410932363,6.53195,1801.7,1801.6,1.11853478]
[1743410932559,4.7089,1801.7,1801.6,1.11853478]
[1743410932866,9.61605,1801.7,1801.6,1.11853478]
[1743410933369,9.61605,1801.7,1801.6,0.00832478]
[1743410933570,9.61605,1801.7,1801.6,1.11853478]
[1743410934366,3.2078,1801.7,1801.6,1.11853478]
[1743410935165,4.31795,1801.7,1801.6,1.11853478]
[1743410936668,1.11015,1801.7,1801.6,1.11853478]
[1743410937479,1.5104,1801.8,1801.7,1.11015]
[1743410937768,1.11008,1801.8,1801.7,4.04545]
[1743410937973,10.30692,1801.9,1801.8,1.11008]
[1743410938176,8.11482,1801.9,1801.8,2.58588]
[1743410938672,4.31782,1801.9,1801.8,2.58588]
[1743410940177,3.2078,1801.9,1801.8,2.58588]
[1743410940367,4.31782,1801.9,1801.8,2.58588]
[1743410941065,3.2078,1801.9,1801.8,2.58588]
[1743410941572,4.31782,1801.9,1801.8,2.58588]
[1743410942677,4.31782,1801.9,1801.8,1.4758]
[1743410942976,5.75912,1801.9,1801.8,1.4758]
[1743410943182,1.11008,1801.8,1801.7,1.84779]
[1743410943374,3.30468,1801.8,1801.7,1.84779]
[1743410943771,1.11015,1801.7,1801.6,0.00832478]
[1743410943968,9.60845,1801.7,1801.6,0.00832478]
[1743410944170,1.11027,1801.5,1801.4,2.1481]
[1743410944373,1.11039,1801.3,1801.2,1.4492]
[1743410944572,1.11066,1800.9,1800.8,1.11064]
[1743410944771,1.1107,1800.8,1800.7,1.4492]
[1743410944983,5.812,1800.8,1800.7,1.4492]
[1743410945475,1.11082,1800.7,1800.6,0.00832478]
[1743410945670,2.60432,1800.7,1800.6,0.00832478]
[1743410945868,5.2895,1800.7,1800.6,0.00832478]
[1743410946066,6.40026,1800.7,1800.6,0.00832478]
[1743410952289,8.90026,1800.7,1800.6,0.00832478]
[1743410952790,1.11095,1800.4,1800.3,1.403]
[1743410952990,4.90895,1800.4,1800.3,1.403]
[1743410953187,3.798,1800.4,1800.3,2.51401]
[1743410953490,5.257,1800.5,1800.4,1.11095]
[1743410953687,6.36789,1800.5,1800.4,2.62065]
[1743410954079,3.798,1800.5,1800.4,2.62065]
[1743410954381,4.90889,1800.5,1800.4,2.62065]
[1743410954784,4.90889,1800.5,1800.4,1.5097]
[1743410954982,3.798,1800.5,1800.4,2.62065]
[1743410955578,3.2078,1800.6,1800.5,1.11089]
[1743410955782,3.798,1800.7,1800.5,3.36849]
[1743410956094,1.11072,1800.8,1800.7,1.11076]
[1743410956292,1.11072,1800.8,1800.7,1.4829]
[1743410956484,4.90872,1800.8,1800.7,1.4829]
[1743410956789,2.57282,1800.8,1800.7,2.59366]
[1743410956978,6.37082,1800.8,1800.7,2.59366]
[1743410957495,6.37082,1800.8,1800.7,1.4829]
[1743410957786,1.11079,1800.7,1800.6,1.11076]
[1743410957986,5.78069,1800.7,1800.6,2.59366]
[1743410958289,4.6699,1800.7,1800.6,2.59366]
[1743410958795,5.78066,1800.7,1800.6,2.59366]
[1743410959796,2.57286,1800.7,1800.6,2.59366]
[1743410961493,4.90775,1800.8,1800.7,1.1107]
[1743410961695,4.90775,1800.8,1800.7,2.6199]
[1743410962395,6.40955,1800.8,1800.7,2.6199]
[1743410965891,5.2988,1800.8,1800.7,2.6199]
[1743410966198,6.4095,1800.8,1800.7,2.6199]
[1743410967197,3.797,1800.8,1800.7,2.6199]
[1743410967689,4.32679478,1800.9,1800.8,1.1107]
[1743410967996,7.01312478,1800.9,1800.8,3.9603]
[1743410969795,3.2078,1801.1,1801.0,1.11058]
[1743410970097,4.90647,1801.2,1801.1,1.11052]
[1743410970496,6.31687,1801.2,1801.1,1.11052]
[1743410971199,1.11052,1801.1,1801.0,1.4717]
[1743410971498,1.11064,1801.0,1800.9,1.11063]
[1743410971790,5.4161,1801.1,1800.9,1.11063]
[1743410971791,6.52666,1801.1,1801.0,1.11058]
[1743410971984,3.796,1801.2,1801.1,1.11052]
[1743410971985,4.90651,1801.2,1801.1,1.11052]
[1743410972190,8.49162478,1801.3,1801.2,1.11045]
[1743410972391,9.60201478,1801.3,1801.2,1.11045]
[1743410973199,9.60201478,1801.3,1801.2,3.26805]
[1743410973494,3.80432478,1801.3,1801.2,3.26805]
[1743410973996,0.00832478,1801.3,1801.2,3.26805]
[1743410983110,1.49962478,1801.3,1801.2,3.26805]
[1743410984100,0.00832478,1801.3,1801.2,3.26805]
[1743410985406,1.11871478,1801.3,1801.2,2.51385]
[1743410985606,7.10791478,1801.3,1801.2,1.11045]
[1743410986008,1.11052,1801.2,1801.1,1.11046]
[1743410986200,2.60232,1801.2,1801.1,1.11046]
[1743410986398,1.4918,1801.2,1801.1,1.11046]
[1743410986808,1.4918,1801.2,1801.1,2.57116]
[1743410987308,2.60225,1801.2,1801.1,2.57116]
[1743410988209,1.4918,1801.2,1801.1,2.57116]
[1743410989010,1.11056,1801.1,1801.0,1.11052]
[1743410989206,3.2078,1801.1,1801.0,1.11052]
[1743410989505,4.31832,1801.1,1801.0,1.11052]
[1743410991605,1.11058,1801.0,1800.9,2.5713]
[1743410991808,3.31158,1801.0,1800.9,2.5713]
[1743410992910,2.201,1801.0,1800.9,2.5713]
[1743410993207,3.31158,1801.0,1800.9,2.5713]
[1743410993801,1.11058,1801.0,1800.9,2.5713]
[1743410994000,2.856,1802.0,1801.1,5.5526]
[1743410994303,1.4627,1801.7,1801.6,4.31801]
[1743410994511,1.4627,1801.7,1801.6,28.71021]
[1743410994810,1.4627,1801.7,1801.6,1.11021]
[1743410995112,1.4627,1801.7,1801.6,4.31801]
[1743410995607,1.4627,1801.7,1801.6,1.86781]
[1743410997304,1.4627,1801.7,1801.6,5.07561]
[1743410997514,3.2078,1802.3,1802.2,1.10984]
[1743410997712,3.2078,1802.3,1802.0,2.7749]
[1743410997713,0.7188,1802.3,1802.0,4.31776]
[1743410998008,23.51070475,1802.5,1802.2,3.2078]
[1743410998206,23.51070475,1802.5,1802.4,4.31752]
[1743410998612,5.2054,1802.6,1802.5,1.10965]
[1743410998814,1.42172478,1802.6,1802.5,2.55275]
[1743410999607,1.10965,1802.5,1802.4,4.31747]
[1743410999807,0.7383,1802.5,1802.4,4.31747]
[1743411001111,2.1672,1802.5,1802.4,4.31747]
[1743411001712,1.4289,1802.5,1802.4,4.31747]
[1743411002521,0.00832478,1802.6,1802.5,1.10965]
[1743411002819,1.38792478,1802.6,1802.5,2.62505]
[1743411003522,0.00832478,1802.6,1802.5,2.62505]
[1743411003725,0.00832478,1802.6,1802.5,3.32835]
[1743411004817,5.1623,1802.9,1802.8,1.10947]
[1743411005212,1.3723,1802.9,1802.8,1.10947]
[1743411005425,5.64338,1803.1,1803.0,1.10935]
[1743411006824,5.9064,1803.1,1803.0,1.10935]
[1743411007022,1.3723,1803.1,1803.0,1.10935]
[1743411007214,1.3723,1803.1,1802.9,4.64062478]
[1743411007215,0.00832478,1803.2,1803.1,1.10928]
[1743411007415,0.00832478,1803.2,1803.1,4.31708]
[1743411008430,0.00832478,1803.2,1803.1,5.01308]
[1743411019026,1.10881,1803.9,1803.8,1.10885]
[1743411019224,4.89581,1803.9,1803.8,1.10885]
[1743411020039,1.10881,1803.9,1803.8,1.10885]
[1743411020227,6.41261,1803.9,1803.8,1.10885]
[1743411022235,5.3038,1803.9,1803.8,1.10885]
[1743411022430,6.41259,1803.9,1803.8,1.10885]
[1743411026529,1.5168,1803.9,1803.8,1.10885]
[1743411026835,0.00549609,1804.0,1803.9,1.10879]
[1743411027033,0.00549609,1804.0,1803.9,4.31659]
[1743411027538,0.00549609,1804.0,1803.9,5.02519]
[1743411027829,0.00549609,1804.0,1803.9,32.62519]
[1743411029530,3.2078,1804.8,1804.5,1.10842]
[1743411029735,1.10846,1804.5,1804.4,1.10842]
[1743411030932,3.20416,1804.5,1804.4,1.10842]
[1743411031432,2.0957,1804.5,1804.3,0.00832478]
[1743411031729,6.39539,1804.4,1804.3,0.00832478]
[1743411033527,2.77139,1804.3,1804.1,1.10864]
[1743411033733,5.181,1804.2,1804.1,1.10864]
[1743411033933,1.10872,1804.1,1804.0,1.10868]
[1743411034232,3.99682,1804.1,1804.0,1.10868]
[1743411036236,2.8881,1804.1,1804.0,1.10868]
[1743411036436,3.79232478,1804.2,1804.1,1.10867]
[1743411036738,0.00832478,1804.2,1804.1,4.31647]
[1743411044936,1.38632478,1804.2,1804.1,4.31647]
[1743411048246,0.00832478,1804.2,1804.1,4.31647]
[1743411050650,1.49312478,1804.2,1804.1,4.31647]
[1743411050851,1.49312478,1804.2,1804.1,5.73647]
[1743411056352,1.49312478,1804.2,1804.1,2.52867]
[1743411061674,1.10873,1804.0,1803.9,0.00832478]
[1743411061870,4.88973,1804.0,1803.9,0.00832478]
[1743411062067,4.88973,1804.0,1803.9,1.11711478]
[1743411062268,0.00832478,1804.2,1804.1,1.10867]
[1743411062968,0.00832478,1804.2,1804.1,2.55967]
[1743411070779,0.7161,1804.7,1804.6,1.10836]
[1743411070978,2.1439,1804.9,1804.5,5.985]
[1743411071172,2.86,1804.9,1804.8,1.10824]
[1743411071571,26.71850475,1805.0,1804.9,1.10818]
[1743411071782,23.51070475,1805.0,1804.9,1.10818]
[1743411072382,23.51070475,1805.0,1804.9,4.31598]
[1743411072581,23.51070475,1805.0,1804.9,5.69538]
[1743411072882,23.51070475,1805.0,1804.9,6.45108]
[1743411074282,1.4988,1805.1,1805.0,1.10812]
[1743411074586,1.4988,1805.1,1805.0,2.48752]
[1743411074789,1.10812,1805.0,1804.9,0.00832478]
[1743411074986,1.80972,1805.0,1804.9,0.00832478]
[1743411075182,1.80972,1805.0,1804.9,1.11650478]
[1743411075385,3.17642,1805.0,1804.9,0.00832478]
[1743411075585,3.17642,1805.0,1804.9,1.11650478]
[1743411076083,3.17642,1805.0,1804.9,0.00832478]
[1743411076282,4.5683,1805.0,1804.3,3.2078]
[1743411076481,1.10849,1804.4,1804.3,4.31629]
[1743411076781,4.88745,1804.5,1804.4,1.10849]
[1743411077083,1.10849,1804.4,1804.2,1.10856]
[1743411077282,1.3667,1804.3,1804.1,1.10862]
[1743411077479,0.7016,1804.2,1804.1,1.11699478]
[1743411078390,1.81021,1804.2,1804.1,1.11699478]
[1743411079188,0.7016,1804.2,1804.1,1.11699478]
[1743411079679,0.7016,1804.2,1804.1,1.85339478]
[1743411080385,1.5075,1804.2,1804.1,1.85339478]
[1743411080688,0.6957,1804.3,1804.2,1.10861]
[1743411080891,3.30225,1804.3,1804.2,1.10861]
[1743411082583,5.59842,1804.4,1804.3,1.10855]
[1743411082786,2.2089,1804.4,1804.3,1.10855]
[1743411082985,4.51322478,1804.5,1804.4,1.10849]
[1743411083290,3.78732478,1804.5,1804.4,1.10849]
[1743411083589,4.89574478,1804.5,1804.4,1.10849]
[1743411083783,0.00832478,1804.5,1804.4,1.10849]
[1743411084795,0.00832478,1804.5,1804.4,4.31629]
[1743411087696,1.11674478,1804.5,1804.4,1.10849]
[1743411087993,1.10861,1804.2,1804.1,1.11696478]
[1743411088195,1.10861,1804.2,1804.1,0.00832478]
[1743411088494,1.10885,1803.9,1803.8,1.10884]
[1743411088798,1.10895,1803.7,1803.6,1.10892]
[1743411089498,2.48775,1803.7,1803.6,1.10892]
[1743411089903,1.3788,1803.7,1803.6,1.10892]
[1743411090085,3.778,1804.0,1803.9,1.10879]
[1743411090290,5.2489,1804.0,1803.9,1.10879]
[1743411090596,6.35763,1804.0,1803.9,1.10879]
[1743411090985,1.10893,1803.8,1803.7,1.10889]
[1743411091191,1.10894,1803.7,1803.6,1.10893]
[1743411091493,1.4709,1803.7,1803.6,1.10893]
[1743411091899,2.57982,1803.7,1803.6,1.10893]
[1743411092791,1.4709,1803.7,1803.6,1.10893]
[1743411093800,2.57982,1803.7,1803.6,1.10893]
[1743411094296,1.10898,1803.6,1803.5,4.65612478]
[1743411094487,6.52298,1803.6,1803.5,0.00832478]
[1743411094689,1.10921,1803.3,1803.2,1.10918]
[1743411095295,2.58461,1803.3,1803.2,1.10918]
[1743411097398,1.10922,1803.2,1803.1,1.41542478]
[1743411097603,2.56372,1803.2,1803.1,0.00832478]
[1743411097796,2.56372,1803.2,1803.1,1.11760478]
[1743411098897,1.4545,1803.2,1803.1,1.11760478]
[1743411099694,2.56372,1803.2,1803.1,0.00832478]
[1743411100100,2.56372,1803.2,1803.1,1.11760478]
[1743411100300,2.56372,1803.2,1803.1,0.00832478]
[1743411100495,2.56372,1803.2,1803.1,1.11760478]
[1743411100690,2.56372,1803.2,1803.1,0.00832478]
[1743411101099,2.56372,1803.2,1803.1,1.11760478]
[1743411101296,2.56372,1803.2,1803.1,0.00832478]
[1743411101497,5.77152,1803.2,1803.1,0.00832478]
[1743411102501,1.10947,1802.8,1802.7,2.49368]
[1743411103195,2.51287,1802.8,1802.7,2.49368]
[1743411103496,1.4034,1802.8,1802.7,2.49368]
[1743411104498,2.51287,1802.8,1802.7,2.49368]
[1743411105095,1.4034,1802.8,1802.7,2.49368]
[1743411105409,2.51287,1802.8,1802.7,2.49368]
[1743411107099,1.4034,1802.8,1802.7,2.49368]
[1743411108399,2.51287,1802.8,1802.7,2.49368]
[1743411110710,4.88944,1802.9,1802.8,1.10947]
[1743411110901,2.1915,1803.0,1802.9,1.10941]
[1743411111098,1.4803,1803.0,1802.9,1.10941]
[1743411111403,5.58078,1803.1,1803.0,1.10935]
[1743411111598,1.10941,1802.9,1802.8,1.10945]
[1743411111805,2.5594,1803.0,1802.9,1.10941]
[1743411113907,5.58083,1803.1,1803.0,1.10935]
[1743411114100,7.02033,1803.1,1803.0,1.10935]
[1743411114406,7.02028,1803.1,1803.0,1.10935]
[1743411114701,3.78,1803.1,1803.0,1.10935]
[1743411114900,4.88928,1803.1,1803.0,2.56765]
[1743411119014,6.32775,1803.2,1803.1,1.10928]
[1743411119311,6.32775,1803.2,1803.1,2.58508]
[1743411120115,6.32772,1803.2,1803.1,2.58508]
[1743411120509,11.19946,1803.2,1802.7,5.98159]
[1743411120712,1.10946,1802.9,1802.8,1.10939]
[1743411120919,1.10946,1802.9,1802.8,2.61809]
[1743411121713,2.59406,1802.9,1802.8,2.61809]
[1743411122018,6.37306,1802.9,1802.8,1.10939]
[1743411122908,6.37305,1802.9,1802.8,1.10947]
[1743411123115,6.37305,1802.9,1802.8,2.61817]
[1743411123312,1.4846,1802.9,1802.8,2.61817]
[1743411123527,1.10931,1803.1,1803.0,1.10935]
[1743411123707,6.37221,1803.1,1803.0,1.10935]
[1743411124105,1.8136,1803.3,1803.2,1.10922]
[1743411124314,3.2975,1803.3,1803.2,1.10922]
[1743411124516,7.0765,1803.3,1803.2,1.10922]
[1743411124922,2.1883,1803.3,1803.2,2.59442]
[1743411125217,0.00832478,1803.4,1803.3,1.10916]
[1743411125920,1.11742478,1803.4,1803.3,1.10916]
[1743411126621,2.62152478,1803.4,1803.3,1.10916]
[1743411127018,3.33222478,1803.4,1803.3,1.10916]
[1743411127417,2.22312478,1803.4,1803.3,1.10916]
[1743411128223,2.62152478,1803.4,1803.3,1.10916]
[1743411128915,1.10916,1803.3,1803.2,1.4852]
[1743411129120,1.5041,1803.3,1803.2,2.59442]
[1743411129323,2.193,1803.3,1803.2,2.59442]
[1743411129717,3.30216,1803.3,1803.2,2.59442]
[1743411129916,2.193,1803.3,1803.2,2.59442]
[1743411130219,0.69932478,1803.4,1803.2,2.59442]
[1743411130421,10.28657,1804.0,1803.4,2.77276]
[1743411130621,1.4409,1803.9,1803.8,1.10885]
[1743411130926,2.53364,1804.2,1804.1,1.10867]
[1743411131117,7.75254,1804.2,1804.1,1.10867]
[1743411131319,1.10873,1804.0,1803.9,3.34416]
[1743411131514,1.10873,1804.0,1803.9,1.10876]
[1743411131816,1.10879,1803.9,1803.8,1.11713478]
[1743411132011,2.54967,1804.0,1803.9,1.10879]
[1743411132425,2.54967,1804.0,1803.9,2.51939]
[1743411133717,1.10879,1803.9,1803.8,0.00832478]
[1743411133924,7.14179,1803.9,1803.8,0.00832478]
[1743411134122,10.34959,1803.9,1803.8,0.00832478]
[1743411134427,1.10909,1803.5,1803.4,1.10907]
[1743411134630,1.10909,1803.5,1803.4,2.51967]
[1743411134819,1.1091,1803.4,1803.3,4.31692]
[1743411135024,2.6115,1803.4,1803.3,4.31692]
[1743411135424,4.5306,1803.6,1803.5,1.10904]
[1743411135622,3.778,1803.6,1803.5,1.10904]
[1743411135823,4.88698,1803.6,1803.5,1.10904]
[1743411136022,4.88698,1803.6,1803.5,3.24524]
[1743411136334,3.778,1803.6,1803.5,3.24524]
[1743411136523,4.88698,1803.6,1803.5,3.24524]
[1743411136729,6.34458,1803.6,1803.5,3.24524]
[1743411136925,7.05268,1803.6,1803.5,3.24524]
[1743411137429,5.9437,1803.6,1803.5,3.24524]
[1743411137623,7.05268,1803.6,1803.5,3.24524]
[1743411138418,5.9437,1803.6,1803.5,3.24524]
[1743411138625,3.778,1803.6,1803.5,3.24524]
[1743411139131,6.25328,1803.6,1803.5,3.24524]
[1743411139427,6.25328,1803.6,1803.5,1.4157]
[1743411139626,1.10916,1803.3,1803.2,0.00832478]
[1743411139830,4.88616,1803.3,1803.2,1.11754478]
[1743411140019,4.88616,1803.3,1803.2,0.00832478]
[1743411140225,4.88616,1803.3,1803.2,1.11754478]
[1743411140421,6.25246,1803.3,1803.2,1.11754478]
[1743411141429,6.25246,1803.3,1803.2,0.00832478]
[1743411142227,1.10953,1802.8,1802.6,3.2078]
[1743411142426,1.10953,1802.8,1802.7,1.1095]
[1743411142728,1.10953,1802.8,1802.7,2.6012]
[1743411142932,3.34103,1802.8,1802.7,2.6012]
[1743411143232,2.2315,1802.8,1802.7,2.6012]
[1743411144334,0.00832478,1802.9,1802.8,1.10947]
[1743411144530,0.00832478,1802.9,1802.8,5.82797]
[1743411145328,0.00832478,1802.9,1802.8,8.32797]
[1743411145830,3.2078,1803.4,1803.3,1.10916]
[1743411146228,4.6097,1803.4,1803.3,1.10916]
[1743411146930,1.10916,1803.3,1803.2,1.5107]
[1743411147122,2.51106,1803.3,1803.2,1.5107]
[1743411147832,3.2078,1803.4,1803.3,1.10916]
[1743411148326,4.3169,1803.4,1803.3,1.10916]
[1743411149132,1.10916,1803.3,1803.2,3.35466]
[1743411149334,2.51486,1803.3,1803.2,3.35466]
[1743411149746,3.23976,1803.3,1803.2,3.35466]
[1743411150338,3.23976,1803.3,1803.2,2.61986]
[1743411150746,7.01676,1803.3,1803.2,2.61986]
[1743411151450,7.71146,1803.3,1803.2,2.61986]
[1743411151753,7.71146,1803.3,1803.2,1.10916]
[1743411152652,6.6023,1803.3,1803.2,1.10916]
[1743411152854,7.71146,1803.3,1803.2,1.10916]
[1743411154460,1.10922,1803.2,1803.1,1.4212]
[1743411154653,1.10953,1802.7,1802.6,1.11789478]
[1743411154950,1.10953,1802.7,1802.6,1.48072478]
[1743411155157,1.10953,1802.7,1802.6,0.00832478]
[1743411155344,3.87873,1802.7,1802.6,0.00832478]
[1743411155657,3.87873,1802.7,1802.6,1.11791478]